fUSD/lending_fUSD_20240531
["ID","MTS","AMOUNT","RATE_DAILY","PERIOD"]
[328284905,1717121536189,-1330.66776317,0.00033296,11]
[328284906,1717121536198,-1428.57,0.00033296,11]
[328284907,1717121536207,-500.0,0.00033296,11]
[328284908,1717121536216,-1796.8,0.00033296,11]
[328284909,1717121536226,-500.0,0.00033296,11]
[328284910,1717121536236,-500.0,0.00033296,11]
[328284911,1717121536245,-500.0,0.00033296,11]
[328284912,1717121536254,-1132.04,0.00033296,11]
[328284913,1717121536263,-1464.57,0.00033296,11]
[328284914,1717121536273,-1132.04,0.00033296,11]
[328284915,1717121536281,-1464.57,0.00033296,11]
[328284916,1717121536291,-1132.04,0.00033296,11]
[328284917,1717121536300,-1464.57,0.00033296,11]
[328284918,1717121536309,-1132.04,0.00033296,11]
[328284919,1717121536318,-1464.57,0.00033296,11]
[328284920,1717121536327,-1132.10026499,0.00033296,11]
[328284921,1717121536336,-1464.71387348,0.00033296,11]
[328284922,1717121536346,-500.0,0.00033296,11]
[328284923,1717121536355,-500.0,0.00033296,11]
[328284924,1717121536364,-1260.24,0.00033296,11]
[328284925,1717121536373,-500.0,0.00033296,11]
[328284926,1717121536382,-500.0,0.00033296,11]
[328284927,1717121536392,-2543.94,0.00033296,11]
[328284928,1717121536402,-3645.12,0.00033296,11]
[328284929,1717121536411,-530.12,0.00033296,11]
[328284930,1717121536420,-530.12,0.00033296,11]
[328284931,1717121536430,-2543.94,0.00033296,11]
[328284932,1717121536439,-530.12,0.00033296,11]
[328284933,1717121536448,-2543.94,0.00033296,11]
[328284934,1717121536458,-530.12,0.00033296,11]
[328284935,1717121536467,-2543.94,0.00033296,11]
[328284936,1717121536477,-530.22120479,0.00033296,11]
[328284937,1717121536490,-2544.08286117,0.00033296,11]
[328284938,1717121536501,-2041.06,0.00033296,11]
[328284939,1717121536512,-500.0,0.00033296,11]
[328284940,1717121536521,-1110.09,0.00033296,11]
[328284941,1717121536531,-2551.18,0.00033296,11]
[328284942,1717121536541,-2551.18,0.00033296,11]
[328284943,1717121536551,-2551.18,0.00033296,11]
[328284944,1717121536560,-2551.18,0.00033296,11]
[328284945,1717121536570,-2551.19009935,0.00033296,11]
[328284946,1717121536580,-511.96762535,0.00033296,11]
[328284947,1717121536589,-1322.41,0.00033296,11]
[328284948,1717121536599,-3058.47,0.00033296,11]
[328284949,1717121536609,-1876.84,0.00033296,11]
[328284950,1717121536619,-1876.84,0.00033296,11]
[328284951,1717121536629,-1876.84,0.00033296,11]
[328284952,1717121536638,-1876.84,0.00033296,11]
[328284953,1717121536648,-1877.04056097,0.00033296,11]
[328284954,1717121536658,-1721.36,0.00033296,11]
[328284955,1717121536668,-1721.36,0.00033296,11]
[328284956,1717121536678,-1721.36,0.00033296,11]
[328284957,1717121536688,-1721.36,0.00033296,11]
[328284958,1717121536698,-1721.58095371,0.00033296,11]
[328284959,1717121536708,-2410.07,0.00033296,11]
[328284960,1717121536718,-2410.07,0.00033296,11]
[328284961,1717121536727,-2410.07,0.00033296,11]
[328284962,1717121536739,-500.0,0.00033296,11]
[328284963,1717121536749,-2410.07,0.00033296,11]
[328284964,1717121536760,-2410.30831323,0.00033296,11]
[328284965,1717121536773,-500.0,0.00033296,11]
[328284966,1717121536782,-569.45,0.00033296,11]
[328284967,1717121536793,-569.45,0.00033296,11]
[328284968,1717121536804,-569.45,0.00033296,11]
[328284969,1717121536813,-569.45,0.00033296,11]
[328284970,1717121536823,-2108.61,0.00033296,11]
[328284971,1717121536833,-569.62717097,0.00033296,11]
[328284972,1717121536844,-536.32,0.00033296,11]
[328284973,1717121536853,-500.0,0.00033296,11]
[328284974,1717121536863,-500.0,0.00033296,11]
[328284975,1717121536872,-974.81,0.00033296,11]
[328284976,1717121536882,-974.81,0.00033296,11]
[328284977,1717121536891,-974.81,0.00033296,11]
[328284978,1717121536901,-974.81,0.00033296,11]
[328284979,1717121536911,-506.6,0.00033296,11]
[328284980,1717121536920,-974.84590488,0.00033296,11]
[328284981,1717121536930,-827.1,0.00033296,11]
[328284982,1717121536940,-500.0,0.00033297,11]
[328284983,1717121536950,-500.0,0.00033297,11]
[328284984,1717121536960,-500.0,0.00033297,11]
[328284985,1717121536969,-500.0,0.00033297,11]
[328284986,1717121536979,-500.0,0.00033297,11]
[328284987,1717121536989,-533.37,0.00033297,11]
[328284988,1717121536999,-500.0,0.00033297,11]
[328284989,1717121537008,-500.0,0.00033297,11]
[328284990,1717121537018,-500.0,0.00033297,11]
[328284991,1717121537028,-500.0,0.00033297,11]
[328284992,1717121537037,-500.0,0.00033297,11]
[328284993,1717121537047,-605.04027298,0.00033297,11]
[328284994,1717121537057,-500.0,0.00033297,11]
[328284995,1717121537066,-500.0,0.00033297,11]
[328284996,1717121537076,-500.0,0.00033297,11]
[328284997,1717121537085,-500.0,0.00033297,11]
[328284998,1717121537094,-367.75778771,0.00033297,11]
[328284999,1717121537104,-500.0,0.00033297,11]
[328285000,1717121537113,-500.0,0.00033297,11]
[328285001,1717121537123,-500.0,0.00033297,11]
[328285002,1717121537132,-633.51,0.00033297,11]
[328285003,1717121537141,-500.0,0.00033297,11]
[328285004,1717121537151,-500.0,0.00033297,11]
[328285005,1717121537160,-500.0,0.00033297,11]
[328285006,1717121537170,-500.0,0.00033297,11]
[328285007,1717121537180,-354.63949681,0.00033297,11]
[328285008,1717121537190,-527.31689157,0.00033297,11]
[328285009,1717121537200,-849.94,0.00033297,11]
[328285010,1717121537210,-500.0,0.00033297,11]
[328285011,1717121537220,-500.0,0.00033297,11]
[328285012,1717121537230,-500.0,0.00033297,11]
[328285013,1717121537240,-500.0,0.00033297,11]
[328285014,1717121537250,-500.0,0.00033297,11]
[328285015,1717121537260,-569.79,0.00033297,11]
[328285016,1717121537269,-569.79,0.00033297,11]
[328285017,1717121537279,-500.0,0.00033297,11]
[328285018,1717121537288,-500.0,0.00033297,11]
[328285019,1717121537298,-185.88646032,0.00033297,11]
[328285020,1717121537308,-560.32,0.00033297,11]
[328285021,1717121537318,-560.32,0.00033297,11]
[328285022,1717121537328,-500.0,0.00033297,11]
[328285023,1717121537337,-500.0,0.00033297,11]
[328285024,1717121537347,-551.5,0.00033297,11]
[328285025,1717121537356,-500.0,0.00033297,11]
[328285026,1717121537366,-500.0,0.00033297,11]
[328285027,1717121537376,-500.0,0.00033297,11]
[328285028,1717121537385,-403.8,0.00033297,11]
[328285029,1717121537395,-500.0,0.00033297,11]
[328285030,1717121537404,-500.0,0.00033297,11]
[328285031,1717121537414,-532.52885833,0.00033297,11]
[328285032,1717121537423,-500.0,0.00033297,11]
[328285033,1717121537433,-510.61,0.00033297,11]
[328285034,1717121537442,-542.76,0.00033297,11]
[328285035,1717121537452,-542.76,0.00033297,11]
[328285036,1717121537462,-542.76,0.00033297,11]
[328285037,1717121537471,-542.76,0.00033297,11]
[328285038,1717121537481,-542.76,0.00033297,11]
[328285039,1717121537493,-542.78,0.00033297,11]
[328285040,1717121537502,-531.57556378,0.00033297,11]
[328285041,1717121537511,-465.08418048,0.00033297,11]
[328285042,1717121537521,-500.0,0.00033297,11]
[328285043,1717121537530,-500.0,0.00033297,11]
[328285044,1717121537540,-508.04,0.00033297,11]
[328285045,1717121537550,-508.04,0.00033297,11]
[328285046,1717121537560,-500.0,0.00033297,11]
[328285047,1717121537570,-500.0,0.00033297,11]
[328285048,1717121537580,-500.0,0.00033297,11]
[328285049,1717121537589,-526.52,0.00033297,11]
[328285050,1717121537599,-500.0,0.00033297,11]
[328285051,1717121537609,-500.0,0.00033297,11]
[328285052,1717121537619,-516.55,0.00033297,11]
[328285053,1717121537629,-500.0,0.00033297,11]
[328285054,1717121537639,-500.0,0.00033297,11]
[328285055,1717121537648,-788.59,0.00033297,11]
[328285056,1717121537658,-788.59,0.00033297,11]
[328285057,1717121537667,-788.59,0.00033297,11]
[328285058,1717121537677,-788.59,0.00033297,11]
[328285059,1717121537687,-788.59,0.00033297,11]
[328285060,1717121537697,-218.63,0.00033297,11]
[328285061,1717121537706,-788.61,0.00033297,11]
[328285062,1717121537716,-560.75,0.00033297,11]
[328285063,1717121537726,-560.75,0.00033297,11]
[328285064,1717121537738,-500.0,0.00033297,11]
[328285065,1717121537747,-500.0,0.00033297,11]
[328285066,1717121537756,-500.0,0.00033297,11]
[328285067,1717121537770,-500.0,0.00033297,11]
[328285068,1717121537779,-351.34,0.00033297,11]
[328285069,1717121537789,-598.55,0.00033297,11]
[328285070,1717121537799,-598.55,0.00033297,11]
[328285071,1717121537809,-500.0,0.00033297,11]
[328285072,1717121537818,-150.0,0.00033297,11]
[328285073,1717121537828,-150.0,0.00033297,11]
[328285074,1717121537837,-500.0,0.00033297,11]
[328285075,1717121537846,-500.0,0.00033297,11]
[328285076,1717121537857,-500.0,0.00033297,11]
[328285077,1717121537866,-728.79,0.00033297,11]
[328285078,1717121537876,-728.79,0.00033297,11]
[328285079,1717121537886,-728.79,0.00033297,11]
[328285080,1717121537896,-728.79,0.00033297,11]
[328285081,1717121537906,-728.79,0.00033297,11]
[328285082,1717121537916,-728.8577446,0.00033297,11]
[328285083,1717121537926,-530.49,0.00033297,11]
[328285084,1717121537935,-500.0,0.00033297,11]
[328285085,1717121537945,-224.07632147,0.00033297,11]
[328285086,1717121537954,-500.0,0.00033297,11]
[328285087,1717121537964,-500.0,0.00033297,11]
[328285088,1717121537974,-500.0,0.00033297,11]
[328285089,1717121537984,-373.07264724,0.00033297,11]
[328285090,1717121537994,-837.31,0.00033297,11]
[328285091,1717121538004,-837.31,0.00033297,11]
[328285092,1717121538014,-500.0,0.00033297,11]
[328285093,1717121538024,-500.0,0.00033297,11]
[328285094,1717121538034,-500.0,0.00033297,11]
[328285095,1717121538044,-500.0,0.00033297,11]
[328285096,1717121538054,-500.0,0.00033297,11]
[328285097,1717121538063,-606.81,0.00033297,7]
[328285098,1717121538073,-500.0,0.00033297,11]
[328285099,1717121538082,-715.05,0.00033297,11]
[328285100,1717121538092,-500.0,0.00033297,11]
[328285101,1717121538102,-500.0,0.00033297,11]
[328285102,1717121538112,-2097.12,0.00033297,11]
[328285103,1717121538121,-2097.12,0.00033297,11]
[328285104,1717121538131,-1655.32,0.00033297,11]
[328285105,1717121538140,-1655.32,0.00033297,11]
[328285106,1717121538150,-1535.28,0.00033297,11]
[328285107,1717121538159,-1535.28,0.00033297,11]
[328285108,1717121538169,-650.7,0.00033297,11]
[328285109,1717121538180,-650.7,0.00033297,11]
[328285110,1717121538190,-661.05,0.00033297,11]
[328285111,1717121538200,-661.05,0.00033297,11]
[328285112,1717121538210,-591.21,0.00033297,11]
[328285113,1717121538220,-591.21,0.00033297,11]
[328285114,1717121538230,-500.0,0.00033297,11]
[328285115,1717121538242,-2310.06,0.00033297,11]
[328285116,1717121538252,-883.76,0.00033297,11]
[328285117,1717121538262,-2310.06,0.00033297,11]
[328285118,1717121538272,-883.76,0.00033297,11]
[328285119,1717121538282,-883.76,0.00033297,11]
[328285120,1717121538292,-883.76,0.00033297,11]
[328285121,1717121538302,-883.76,0.00033297,11]
[328285122,1717121538311,-883.93321212,0.00033297,11]
[328285123,1717121538321,-500.0,0.00033297,11]
[328285124,1717121538331,-500.0,0.00033297,11]
[328285125,1717121538341,-1837.92,0.00033297,11]
[328285126,1717121538350,-1837.92,0.00033297,11]
[328285127,1717121538360,-5137.07,0.00033297,11]
[328285128,1717121538371,-5137.07,0.00033297,11]
[328285129,1717121538380,-783.95,0.00033297,11]
[328285130,1717121538390,-500.0,0.00033297,11]
[328285131,1717121538399,-783.95,0.00033297,11]
[328285132,1717121538409,-1026.83,0.00033297,11]
[328285133,1717121538418,-910.06,0.00033297,11]
[328285134,1717121538428,-910.06,0.00033297,11]
[328285135,1717121538438,-871.0,0.00033297,11]
[328285136,1717121538448,-1393.45,0.00033297,11]
[328285137,1717121538458,-871.0,0.00033297,11]
[328285138,1717121538468,-1393.45,0.00033297,11]
[328285139,1717121538478,-602.64,0.00033297,11]
[328285140,1717121538489,-602.64,0.00033297,11]
[328285141,1717121538499,-602.64,0.00033297,11]
[328285142,1717121538509,-602.64,0.00033297,11]
[328285143,1717121538519,-602.64,0.00033297,11]
[328285144,1717121538529,-602.67412497,0.00033297,11]
[328285145,1717121538539,-701.8,0.00033297,11]
[328285146,1717121538549,-2111.93,0.00033297,11]
[328285147,1717121538559,-2111.93,0.00033297,11]
[328285148,1717121538569,-1347.01,0.00033297,11]
[328285149,1717121538579,-1347.01,0.00033297,11]
[328285150,1717121538781,-1435.36,0.00033297,11]
[328285151,1717121538791,-1435.36,0.00033297,11]
[328285152,1717121538801,-765.66,0.00033297,11]
[328285153,1717121538812,-868.63,0.00033297,11]
[328285154,1717121538823,-765.66,0.00033297,11]
[328285155,1717121538833,-2160.85,0.00033297,11]
[328285156,1717121538845,-2160.85,0.00033297,11]
[328285157,1717121538855,-2720.67,0.00033297,11]
[328285158,1717121538866,-2720.67,0.00033297,11]
[328285159,1717121538876,-500.0,0.00033297,11]
[328285160,1717121538885,-903.41,0.00033297,11]
[328285161,1717121538894,-903.41,0.00033297,11]
[328285162,1717121538903,-500.0,0.00033297,11]
[328285163,1717121538913,-547.74,0.00033297,11]
[328285164,1717121538923,-547.74,0.00033297,11]
[328285165,1717121538933,-5005.69,0.00033297,11]
[328285166,1717121538944,-5005.69,0.00033297,11]
[328285167,1717121538954,-500.0,0.00033297,11]
[328285168,1717121538964,-1043.74,0.00033297,11]
[328285169,1717121538973,-1043.74,0.00033297,11]
[328285170,1717121538982,-526.5,0.00033297,11]
[328285171,1717121538993,-526.5,0.00033297,11]
[328285172,1717121539003,-526.5,0.00033297,11]
[328285173,1717121539011,-526.5,0.00033297,11]
[328285174,1717121539021,-526.5,0.00033297,11]
[328285175,1717121539030,-526.72479228,0.00033297,11]
[328285176,1717121539039,-500.0,0.00033297,11]
[328285177,1717121539049,-10788.11,0.00033297,11]
[328285179,1717121539058,-10788.11,0.00033297,11]
[328285180,1717121539068,-500.0,0.00033297,11]
[328285181,1717121539077,-1360.56,0.00033297,11]
[328285182,1717121539086,-1360.56,0.00033297,11]
[328285183,1717121539095,-6860.83,0.00033297,11]
[328285184,1717121539105,-6860.83,0.00033297,11]
[328285185,1717121539114,-772.35,0.00033297,11]
[328285186,1717121539124,-500.0,0.00033297,11]
[328285187,1717121539135,-500.0,0.00033297,11]
[328285188,1717121539145,-500.0,0.00033297,11]
[328285189,1717121539157,-500.0,0.00033297,11]
[328285190,1717121539167,-972.79,0.00033297,11]
[328285191,1717121539177,-972.79,0.00033297,11]
[328285192,1717121539187,-828.41,0.00033297,11]
[328285193,1717121539196,-1914.61,0.00033297,11]
[328285194,1717121539206,-1914.61,0.00033297,11]
[328285195,1717121539215,-500.0,0.00033297,11]
[328285196,1717121539224,-500.0,0.00033297,11]
[328285197,1717121539234,-500.0,0.00033297,11]
[328285198,1717121539244,-809.46,0.00033297,11]
[328285199,1717121539254,-517.7,0.00033297,11]
[328285200,1717121539263,-517.7,0.00033297,11]
[328285201,1717121539272,-532.71,0.00033297,11]
[328285202,1717121539281,-779.12,0.00033297,11]
[328285203,1717121539291,-779.12,0.00033297,11]
[328285204,1717121539300,-912.78,0.00033297,11]
[328285205,1717121539310,-559.72,0.00033297,11]
[328285206,1717121539320,-1152.38,0.00033297,11]
[328285207,1717121539330,-1152.38,0.00033297,11]
[328285208,1717121539340,-224.90040366,0.00033297,11]
[328285209,1717121539349,-2191.97,0.00033297,11]
[328285210,1717121539359,-2191.97,0.00033297,11]
[328285211,1717121539369,-510.33,0.00033297,11]
[328285212,1717121539378,-1773.91,0.00033297,11]
[328285213,1717121539388,-510.33,0.00033297,11]
[328285214,1717121539397,-510.33,0.00033297,11]
[328285215,1717121539406,-510.33,0.00033297,11]
[328285216,1717121539416,-1895.09,0.00033297,11]
[328285217,1717121539425,-510.33,0.00033297,11]
[328285218,1717121539434,-1895.09,0.00033297,11]
[328285219,1717121539443,-510.34301813,0.00033297,11]
[328285220,1717121539453,-500.0,0.00033297,11]
[328285221,1717121539462,-500.0,0.00033297,11]
[328285222,1717121539471,-500.0,0.00033297,11]
[328285223,1717121539481,-1428.57,0.00033297,11]
[328285224,1717121539493,-1566.8,0.00033297,11]
[328285225,1717121539502,-1428.57,0.00033297,11]
[328285226,1717121539511,-1796.8,0.00033297,11]
[328285227,1717121539520,-1566.8,0.00033297,11]
[328285228,1717121539529,-1796.8,0.00033297,11]
[328285229,1717121539539,-2501.65,0.00033297,11]
[328285230,1717121539549,-500.0,0.00033297,11]
[328285231,1717121539559,-500.0,0.00033297,11]
[328285232,1717121539568,-500.0,0.00033297,11]
[328285233,1717121539577,-555.79606256,0.00033297,11]
[328285234,1717121539587,-500.0,0.00033297,11]
[328285235,1717121539596,-500.0,0.00033297,11]
[328285236,1717121539607,-1002.38,0.00033297,11]
[328285237,1717121539616,-4954.48,0.00033297,11]
[328285238,1717121539625,-1002.38,0.00033297,11]
[328285239,1717121539635,-500.0,0.00033297,11]
[328285240,1717121539645,-1390.26,0.00033297,11]
[328285241,1717121539654,-1390.26,0.00033297,11]
[328285242,1717121539663,-1260.24,0.00033297,11]
[328285243,1717121539673,-1260.24,0.00033297,11]
[328285244,1717121539682,-500.0,0.00033297,11]
[328285245,1717121539692,-500.0,0.00033297,11]
[328285246,1717121539701,-500.0,0.00033297,11]
[328285247,1717121539710,-1966.59,0.00033297,11]
[328285248,1717121539719,-1966.59,0.00033297,11]
[328285249,1717121539729,-3645.12,0.00033297,11]
[328285250,1717121539741,-3645.12,0.00033297,11]
[328285251,1717121539750,-711.6,0.00033297,11]
[328285252,1717121539760,-2041.06,0.00033297,11]
[328285253,1717121539771,-2041.06,0.00033297,11]
[328285254,1717121539780,-3018.14,0.00033297,11]
[328285255,1717121539789,-3018.14,0.00033297,11]
[328285256,1717121539799,-1110.09,0.00033297,11]
[328285257,1717121539809,-1110.09,0.00033297,11]
[328285258,1717121539818,-1110.09,0.00033297,11]
[328285259,1717121539828,-1110.09,0.00033297,11]
[328285260,1717121539838,-1110.09,0.00033297,11]
[328285261,1717121539847,-1110.20411911,0.00033297,11]
[328285262,1717121539856,-500.0,0.00033297,11]
[328285263,1717121539865,-1322.41,0.00033297,11]
[328285264,1717121539874,-1322.41,0.00033297,11]
[328285265,1717121539883,-535.86,0.00033297,11]
[328285266,1717121539893,-535.86,0.00033297,11]
[328285267,1717121539903,-3058.47,0.00033297,11]
[328285268,1717121539912,-3058.47,0.00033297,11]
[328285269,1717121539922,-1417.32,0.00033297,11]
[328285270,1717121539932,-823.07,0.00033297,11]
[328285271,1717121539941,-500.0,0.00033297,11]
[328285272,1717121539951,-500.0,0.00033297,11]
[328285273,1717121539960,-7720.21,0.00033297,11]
[328285274,1717121539969,-500.0,0.00033297,11]
[328285275,1717121539978,-500.0,0.00033297,11]
[328285276,1717121539990,-500.0,0.00033297,11]
[328285277,1717121539999,-2108.61,0.00033297,11]
[328285278,1717121540009,-2108.61,0.00033297,11]
[328285279,1717121540018,-536.32,0.00033297,11]
[328285280,1717121540027,-536.32,0.00033297,11]
[328285281,1717121540036,-1118.68,0.00033297,11]
[328285282,1717121540045,-1118.68,0.00033297,11]
[328285283,1717121540054,-500.0,0.00033297,11]
[328285284,1717121540064,-506.6,0.00033297,11]
[328285285,1717121540073,-506.6,0.00033297,11]
[328285286,1717121540082,-827.1,0.00033297,11]
[328285287,1717121540092,-827.1,0.00033297,11]
[328285288,1717121540101,-1951.05971409,0.00033298,4]
[328285289,1717121540110,-155.54702815,0.00033298,4]
[328285290,1717121540120,-299.58290906,0.00033298,4]
[328285291,1717121540129,-165.55138023,0.00033298,4]
[328285292,1717121540138,-670.46522552,0.00033298,4]
[328285293,1717121540147,-2819.00314972,0.00033298,4]
[328285294,1717121540157,-266.42429918,0.00033298,4]
[328285295,1717121540166,-274.51512683,0.00033298,4]
[328285296,1717121540177,-237.72200736,0.00033298,4]
[328285297,1717121540187,-274.10131803,0.00033298,30]
[328285298,1717121540196,-158.02659812,0.00033298,4]
[328285299,1717121540206,-155.0,0.00033298,4]
[328285300,1717121540215,-502.56244325,0.00033298,4]
[328285301,1717121540225,-155.0,0.00033298,4]
[328285302,1717121540236,-796.815866,0.00033298,15]
[328285303,1717121540245,-500.0,0.00033298,11]
[328285304,1717121540255,-500.0,0.00033298,11]
[328285305,1717121540264,-361.32,0.00033298,11]
[328285306,1717121540273,-514.12521986,0.00033298,11]
[328285307,1717121540282,-532.26335055,0.00033298,11]
[328285308,1717121540292,-516.6147481,0.00033298,11]
[328285309,1717121540301,-500.0,0.00033298,11]
[328285310,1717121540310,-500.0,0.00033298,11]
[328285311,1717121540320,-500.0,0.00033298,11]
[328285312,1717121540329,-500.0,0.00033298,11]
[328285313,1717121540338,-533.37,0.00033298,11]
[328285314,1717121540347,-533.37,0.00033298,11]
[328285315,1717121540356,-500.0,0.00033298,11]
[328285316,1717121540366,-500.0,0.00033298,11]
[328285317,1717121540375,-500.0,0.00033298,11]
[328285318,1717121540385,-500.0,0.00033298,11]
[328285319,1717121540394,-526.9611858,0.00033298,11]
[328285320,1717121540404,-500.0,0.00033298,11]
[328285321,1717121540413,-500.0,0.00033298,11]
[328285322,1717121540422,-500.0,0.00033298,11]
[328285323,1717121540431,-500.0,0.00033298,11]
[328285324,1717121540440,-500.0,0.00033298,11]
[328285325,1717121540450,-524.59597022,0.00033298,11]
[328285326,1717121540459,-524.96127823,0.00033298,11]
[328285327,1717121540468,-515.12738293,0.00033298,11]
[328285328,1717121540477,-500.0,0.00033298,11]
[328285329,1717121540489,-183.11446116,0.00033298,11]
[328285330,1717121540497,-649.99632637,0.00033298,11]
[328285331,1717121540506,-500.0,0.00033298,11]
[328285332,1717121540515,-500.0,0.00033298,11]
[328285333,1717121540524,-500.0,0.00033298,11]
[328285334,1717121540532,-500.0,0.00033298,11]
[328285335,1717121540541,-564.79850236,0.00033298,11]
[328285336,1717121540551,-500.0,0.00033298,11]
[328285337,1717121540560,-500.0,0.00033298,11]
[328285338,1717121540569,-333.47048789,0.00033298,11]
[328285339,1717121540578,-500.0,0.00033298,11]
[328285340,1717121540588,-500.0,0.00033298,11]
[328285341,1717121540597,-500.0,0.00033298,11]
[328285342,1717121540606,-500.0,0.00033298,11]
[328285343,1717121540616,-500.0,0.00033298,11]
[328285344,1717121540625,-500.0,0.00033298,11]
[328285345,1717121540634,-516.67112153,0.00033298,11]
[328285346,1717121540643,-518.47462157,0.00033298,11]
[328285347,1717121540652,-500.0,0.00033298,11]
[328285348,1717121540661,-500.0,0.00033298,11]
[328285349,1717121540671,-500.0,0.00033298,11]
[328285350,1717121540680,-625.01886987,0.00033298,11]
[328285351,1717121540689,-500.0,0.00033298,11]
[328285352,1717121540698,-500.0,0.00033298,11]
[328285353,1717121540707,-500.0,0.00033298,11]
[328285354,1717121540716,-527.6630742,0.00033298,11]
[328285355,1717121540726,-500.0,0.00033298,11]
[328285356,1717121540736,-519.33113617,0.00033298,11]
[328285357,1717121540745,-500.0,0.00033298,11]
[328285358,1717121540755,-500.0,0.00033298,11]
[328285359,1717121540768,-500.0,0.00033298,11]
[328285360,1717121540777,-510.06557911,0.00033298,11]
[328285361,1717121540786,-633.51,0.00033298,11]
[328285362,1717121540796,-516.51002821,0.00033298,11]
[328285363,1717121540806,-633.51,0.00033298,11]
[328285364,1717121540815,-633.51,0.00033298,11]
[328285365,1717121540825,-500.0,0.00033298,11]
[328285366,1717121540834,-633.51,0.00033298,11]
[328285367,1717121540845,-608.20703435,0.00033298,11]
[328285368,1717121540854,-500.0,0.00033298,11]
[328285369,1717121540863,-526.05451519,0.00033298,11]
[328285370,1717121540873,-500.0,0.00033298,11]
[328285371,1717121540883,-500.0,0.00033298,11]
[328285372,1717121540892,-520.14413201,0.00033298,11]
[328285373,1717121540901,-500.0,0.00033298,11]
[328285374,1717121540911,-500.0,0.00033298,11]
[328285375,1717121540920,-500.0,0.00033298,11]
[328285376,1717121540929,-500.0,0.00033298,11]
[328285377,1717121540938,-500.0,0.00033298,11]
[328285378,1717121540948,-500.0,0.00033298,11]
[328285379,1717121540956,-522.5543618,0.00033298,11]
[328285380,1717121540966,-500.0,0.00033298,11]
[328285381,1717121540975,-515.01295276,0.00033298,11]
[328285382,1717121540985,-849.94,0.00033298,11]
[328285383,1717121540994,-849.94,0.00033298,11]
[328285384,1717121541003,-849.94,0.00033298,11]
[328285385,1717121541013,-849.94,0.00033298,11]
[328285386,1717121541022,-500.0,0.00033298,11]
[328285387,1717121541031,-550.73498186,0.00033298,11]
[328285388,1717121541096,-399.68959322,0.00033298,11]
[328285389,1717121541105,-500.0,0.00033298,11]
[328285390,1717121541115,-526.86431039,0.00033298,11]
[328285391,1717121541125,-500.0,0.00033298,11]
[328285392,1717121541134,-500.0,0.00033298,11]
[328285393,1717121541144,-510.45976209,0.00033298,11]
[328285394,1717121541153,-500.0,0.00033298,11]
[328285395,1717121541162,-569.79,0.00033298,11]
[328285396,1717121541172,-569.79,0.00033298,11]
[328285397,1717121541182,-569.79,0.00033298,11]
[328285398,1717121541191,-569.79,0.00033298,11]
[328285399,1717121541201,-569.80025256,0.00033298,11]
[328285400,1717121541210,-500.0,0.00033298,11]
[328285401,1717121541219,-500.0,0.00033298,11]
[328285402,1717121541228,-500.0,0.00033298,11]
[328285403,1717121541239,-314.41651309,0.00033298,11]
[328285404,1717121541248,-500.0,0.00033298,11]
[328285405,1717121541257,-500.0,0.00033298,11]